bitfinex/quotes_ETHUSD_20240711
["timestamp","ask_amount","ask_price","bid_price","bid_amount"]
[1720728443482,3.38,3121.7,3121.3,10.95484304]
[1720728443678,3.38,3121.7,3121.3,10.5291536]
[1720728443679,6.38,3121.6,3121.3,10.5291536]
[1720728449264,9.58349,3121.6,3121.3,8.5716536]
[1720728449411,9.58349,3121.6,3121.3,7.74841671]
[1720728449412,3.38,3121.4,3121.3,7.74841671]
[1720728449811,6.38,3121.4,3121.3,7.74841671]
[1720728451317,6.38,3121.4,3121.3,6.97341671]
[1720728453343,9.58369,3121.4,3121.3,6.97341671]
[1720728454630,9.58369,3121.4,3121.3,6.75041671]
[1720728455013,10.862423,3121.4,3121.3,4.54491671]
[1720728455214,10.862423,3121.4,3121.3,3.53641069]
[1720728455430,10.862423,3121.4,3121.3,3.48309426]
[1720728455750,14.066113,3121.4,3121.3,3.48309426]
[1720728456467,16.344113,3121.4,3121.3,0.43958574]
[1720728456749,16.344113,3121.4,3121.3,0.05072662]
[1720728457562,6.58415,3121.0,3120.4,2.17176421]
[1720728457741,6.58446,3120.7,3119.8,7.48]
[1720728457945,6.58446,3120.7,3120.5,0.0537975]
[1720728458143,3.0,3120.6,3119.8,7.48]
[1720728458517,3.0,3120.6,3119.9,0.05416062]
[1720728460654,3.0,3120.6,3120.0,2.2555]
[1720728462254,3.0,3120.6,3120.1,0.05417653]
[1720728462557,3.0,3121.2,3120.2,0.55]
[1720728462742,3.20401,3121.1,3120.2,0.55]
[1720728462943,3.0,3121.0,3120.2,0.55]
[1720728463174,3.0,3121.0,3120.1,0.55]
[1720728463381,3.0,3121.0,3120.3,0.05405549]
[1720728463560,3.0,3121.0,3120.1,0.55]
[1720728464946,3.0,3121.0,3120.2,2.57779691]
[1720728465184,3.0,3121.0,3120.3,0.55]
[1720728465489,3.0,3121.0,3120.3,0.60405549]
[1720728465642,3.0,3121.1,3120.3,0.60405549]
[1720728465842,3.0,3121.1,3120.3,0.55]
[1720728466176,3.38,3121.2,3120.3,0.55]
[1720728466344,3.38,3121.3,3120.4,0.05399498]
[1720728466546,0.16033273,3121.4,3120.6,2.4596]
[1720728466747,3.38,3121.6,3120.6,2.4596]
[1720728466949,3.38,3121.6,3120.7,0.05381346]
[1720728467302,0.00082476,3121.8,3121.2,2.4596]
[1720728467643,0.00082476,3121.8,3121.4,2.4596]
[1720728468073,0.00082476,3121.8,3121.5,0.60332958]
[1720728473177,0.00082476,3121.8,3121.6,2.4991]
[1720728473378,0.00082476,3121.8,3121.7,0.55]
[1720728473582,0.00082476,3121.8,3121.7,0.6028435]
[1720728484435,0.00082476,3121.8,3121.7,0.0528435]
[1720728487367,0.00082476,3121.8,3120.5,12.29]
[1720728487368,0.00082476,3121.8,3120.4,2.3765]
[1720728487643,7.27706336,3121.8,3120.4,2.3765]
[1720728488121,3.0,3121.7,3120.4,2.3765]
[1720728488560,3.0,3121.7,3120.5,0.04829471]
[1720728489556,0.00082476,3121.8,3120.6,2.3776]
[1720728489935,0.00082476,3121.8,3120.7,0.5981737]
[1720728492560,0.31762513,3121.8,3120.7,0.5981737]
[1720728493845,0.00082476,3121.8,3120.7,0.5981737]
[1720728496498,0.00082476,3121.8,3120.8,2.3262]
[1720728496807,0.00082476,3121.8,3120.9,0.59805271]
[1720728501100,3.00082476,3121.8,3120.9,0.59805271]
[1720728501394,3.00082476,3121.8,3120.9,0.55]
[1720728501599,3.97593313,3121.8,3120.9,0.55]
[1720728503900,0.97593313,3121.8,3120.9,0.55]
[1720728504115,0.00082476,3121.8,3120.9,0.55]
[1720728504487,3.00082476,3121.8,3121.0,2.4088]
[1720728504795,0.00082476,3121.8,3121.1,0.55]
[1720728505098,0.00082476,3121.8,3121.2,0.04791101]
[1720728505285,0.00082476,3121.8,3121.3,0.55]
[1720728505486,0.00082476,3121.8,3121.4,0.04779006]
[1720728505665,0.00082476,3121.8,3121.5,0.55]
[1720728505867,0.00082476,3121.8,3121.6,0.04766912]
[1720728506270,0.00082476,3121.8,3121.5,0.55]
[1720728506596,0.00082476,3121.8,3121.6,0.04766912]
[1720728507404,0.00082476,3121.8,3121.6,2.31176912]
[1720728509814,0.00082476,3121.8,3121.7,0.55]
[1720728510020,0.00082476,3121.8,3121.7,0.59761149]
[1720728514493,0.00082476,3121.8,3121.7,0.66165769]
[1720728514698,0.00082476,3121.8,3121.7,0.59761149]
[1720728530717,0.00082476,3121.8,3121.7,0.66165256]
[1720728531114,0.00082476,3121.8,3121.7,0.59761149]
[1720728531312,0.00082476,3121.8,3121.7,0.6616526]
[1720728532622,0.00082476,3121.8,3121.7,4.74799149]
[1720728532822,0.00082476,3121.8,3121.7,5.86269638]
[1720728533019,0.00082476,3121.8,3121.7,4.74799149]
[1720728534832,0.00082476,3121.8,3121.7,0.59761149]
[1720728537830,0.00082476,3121.8,3121.7,0.04761149]
[1720728538052,0.00082476,3121.8,3121.2,3.2235]
[1720728538278,0.00082476,3121.8,3121.2,2.2765]
[1720728538440,0.00082476,3121.8,3121.0,0.67146059]
[1720728538441,0.00082476,3121.8,3121.3,0.04761342]
[1720728538740,0.00082476,3121.8,3121.0,0.947]
[1720728538939,0.00082476,3121.8,3121.4,0.04611093]
[1720728539248,0.00082476,3121.8,3121.0,0.947]
[1720728539546,0.00082476,3121.8,3121.1,1.11494107]
[1720728539850,0.00082476,3121.8,3121.2,0.55]
[1720728540050,0.00082476,3121.8,3121.1,0.59480513]
[1720728540247,0.00082476,3121.8,3121.3,0.04470539]
[1720728540412,0.00082476,3121.8,3121.2,0.59476586]
[1720728540849,0.00082476,3121.8,3121.2,0.04476586]
[1720728542916,2.48862476,3121.8,3121.2,0.04476586]
[1720728543123,2.73748724,3121.8,3121.2,0.04476586]
[1720728543752,3.0,3121.7,3120.9,0.55]
[1720728544149,3.0,3121.7,3121.0,0.04490806]
[1720728544582,2.4911,3121.6,3121.0,0.04490806]
[1720728544729,2.4911,3121.6,3120.3,9.8883]
[1720728545061,2.4911,3121.6,3120.4,2.83336363]
[1720728545261,2.4911,3121.6,3120.4,0.04530785]
[1720728545634,2.4911,3121.6,3120.4,0.59530785]
[1720728546572,2.4911,3121.6,3120.4,2.09530785]
[1720728546870,3.0,3121.7,3120.7,1.5]
[1720728547022,0.00082476,3121.8,3120.8,1.66508237]
[1720728547228,0.00082476,3121.8,3120.8,0.59506583]
[1720728547658,0.00082476,3121.8,3120.9,0.06405968]
[1720728547852,0.00082476,3121.8,3121.0,0.59494485]
[1720728548641,0.00082476,3121.8,3121.1,0.06405972]
[1720728548854,0.00082476,3121.8,3121.2,0.55]
[1720728549133,0.00082476,3121.8,3121.3,0.0447634]
[1720728549335,0.00082476,3121.8,3121.3,0.10882201]
[1720728549640,0.00082476,3121.8,3121.4,0.55]
[1720728549958,0.00082476,3121.8,3121.5,0.04462971]
[1720728550466,0.00082476,3121.8,3121.2,0.55]
[1720728550870,0.00082476,3121.8,3121.3,0.04480017]
[1720728551736,0.00082476,3121.8,3121.3,2.44190017]
[1720728551937,0.00082476,3121.8,3121.4,0.55]
[1720728552135,0.00082476,3121.8,3121.5,0.04467922]
[1720728554063,0.00082476,3121.8,3121.2,0.55]
[1720728554364,0.00082476,3121.8,3121.1,0.55]
[1720728554567,0.00082476,3121.8,3121.3,0.04480017]
[1720728554766,0.00082476,3121.8,3121.2,0.04486065]
[1720728554967,0.00082476,3121.8,3121.4,0.0447397]
[1720728555141,0.00082476,3121.8,3121.4,0.55]
[1720728555342,0.00082476,3121.8,3121.5,0.04467922]
[1720728555541,0.00082476,3121.8,3121.5,0.59467922]
[1720728556255,0.00082476,3121.8,3121.5,0.04467922]
[1720728556765,0.00082476,3121.8,3121.2,0.55]
[1720728556766,0.00082476,3121.8,3121.7,2.4828]
[1720728556977,0.00082476,3121.8,3121.7,3.0328]
[1720728557269,0.00082476,3121.8,3121.7,3.07735829]
[1720728557630,0.00082476,3121.8,3121.7,0.59455829]
[1720728557834,0.00082476,3121.8,3121.7,0.04455829]
[1720728558145,0.00082476,3121.8,3121.5,0.55]
[1720728558482,0.00082476,3121.8,3121.6,0.04461876]
[1720728570183,0.00082476,3121.8,3121.7,2.78694573]
[1720728570349,0.00082476,3121.8,3121.7,3.33693356]
[1720728570550,2.3444,3122.8,3121.8,1.5]
[1720728570750,2.3444,3122.8,3121.9,1.70920217]
[1720728571050,2.3444,3122.8,3122.0,0.06404124]
[1720728571280,2.3444,3122.8,3122.1,0.55]
[1720728571467,2.3444,3122.8,3122.1,0.59420189]
[1720728572388,2.3444,3122.8,3122.1,0.04420189]
[1720728572753,3.0,3123.1,3122.1,1.5]
[1720728573054,5.45611527,3123.3,3122.2,0.59403821]
[1720728573678,5.45611527,3123.3,3122.2,0.04403821]
[1720728574382,2.45611527,3123.3,3122.2,0.04403821]
[1720728574682,2.62052172,3123.3,3122.2,0.04403821]
[1720728574886,3.0,3123.2,3122.2,0.04403821]
[1720728575261,3.0,3123.2,3122.2,1.54403821]
[1720728575482,2.45611527,3123.3,3122.3,0.55]
[1720728575867,2.45611527,3123.3,3122.4,0.04391733]
[1720728576687,5.45611527,3123.3,3122.4,0.04391733]
[1720728582791,5.45611527,3123.3,3122.4,0.99091733]
[1720728582973,5.45611527,3123.3,3122.5,0.55]
[1720728583184,5.45611527,3123.3,3122.6,0.04361413]
[1720728583796,3.00081527,3123.3,3122.6,2.32081413]
[1720728583993,3.0,3123.2,3122.7,0.55]
[1720728584196,0.00081527,3123.3,3122.8,0.04349329]
[1720728584362,0.00081527,3123.3,3122.7,0.55]
[1720728584717,0.00081527,3123.3,3122.8,0.04349329]
[1720728584989,0.00081527,3123.3,3122.7,0.55]
[1720728585189,0.00081527,3123.3,3122.8,0.04349329]
[1720728585395,0.00081527,3123.3,3122.7,0.55]
[1720728585594,0.00081527,3123.3,3122.8,0.04349329]
[1720728585768,0.00081527,3123.3,3122.7,0.55]
[1720728585969,0.00081527,3123.3,3122.8,0.04349329]
[1720728586162,0.00081527,3123.3,3122.7,0.55]
[1720728586398,0.00081527,3123.3,3122.8,0.04349329]
[1720728586613,0.00081527,3123.3,3122.7,0.55]
[1720728586824,0.00081527,3123.3,3122.9,0.04343287]
[1720728586962,0.00081527,3123.3,3122.8,0.04349329]
[1720728587170,0.00081527,3123.3,3122.7,0.55]
[1720728587171,0.947,3123.2,3122.7,0.55]
[1720728587385,0.00081527,3123.3,3122.8,0.04349329]
[1720728587599,0.947,3123.2,3122.4,0.55]
[1720728588064,0.947,3123.2,3122.5,0.04367456]
[1720728589310,2.3754,3123.1,3122.5,0.04367456]
[1720728589595,2.3754,3123.1,3122.1,3.2831]
[1720728589596,5.3754,3123.1,3122.1,3.2831]
[1720728589803,5.3754,3123.1,3122.2,0.04385587]
[1720728590590,5.3754,3123.1,3122.2,0.59385587]
[1720728592597,0.947,3123.0,3122.2,0.59385587]
[1720728592781,3.947,3123.0,3122.2,0.59385587]
[1720728596508,4.14934,3122.8,3122.2,0.04385587]
[1720728596721,6.56096,3122.3,3122.2,0.04385587]
[1720728596998,9.78604,3122.1,3121.5,7.48]
[1720728597210,0.947,3121.6,3121.5,7.48]
[1720728597391,0.947,3121.6,3120.6,2.36881803]
[1720728597392,1.44411322,3121.6,3120.6,9.84881803]
[1720728597587,1.44411322,3121.6,3120.6,2.36881803]
[1720728599923,1.44411322,3121.6,3120.7,0.55]
[1720728600685,6.20318,3121.9,3120.7,0.55]
[1720728600891,4.3310289,3121.9,3120.7,0.55]
[1720728601096,0.49711322,3122.0,3120.7,0.55]
[1720728602319,5.62993,3121.9,3120.7,0.55]
[1720728602519,6.70039322,3121.8,3120.7,0.55]
[1720728602703,7.22449226,3121.8,3120.7,0.55]
[1720728603098,7.22449226,3121.8,3120.8,0.03464641]
[1720728603294,1.28544223,3121.7,3120.8,0.03464641]
[1720728603517,4.02121226,3121.8,3120.7,0.55]
[1720728603910,4.02121226,3121.8,3120.8,0.03481366]
[1720728604287,4.02121226,3121.8,3120.7,0.55]
[1720728604288,3.49711322,3121.8,3120.7,0.55]
[1720728604614,3.49711322,3121.8,3120.8,0.03481366]
[1720728604816,3.49711322,3121.8,3120.7,0.55]
[1720728605016,3.49711322,3121.8,3120.8,0.03481366]
[1720728605326,4.40980154,3121.8,3120.7,0.55]
[1720728605522,4.93390058,3121.8,3120.7,0.55]
[1720728605692,0.52409904,3121.7,3120.8,0.03480522]
[1720728605888,0.49711322,3121.6,3120.8,0.03480522]
[1720728606083,0.49711322,3121.6,3120.6,0.00081803]
[1720728606406,0.49711322,3121.6,3120.7,0.03486572]
[1720728613624,4.53070761,3121.6,3120.7,0.03486572]
[1720728613945,4.53070761,3121.6,3120.6,0.00081803]
[1720728613946,2.2843,3121.4,3120.6,0.00081803]
[1720728614106,3.20392,3121.2,3120.6,0.00081803]
[1720728614320,1.02121226,3121.1,3120.6,0.00081803]
[1720728614528,0.42251323,3121.0,3120.6,0.00081803]
[1720728614709,0.91962645,3121.0,3120.6,0.00081803]
[1720728615530,3.91962645,3121.0,3120.6,0.00081803]
[1720728615709,3.0,3121.2,3120.6,0.00081803]
[1720728615906,3.0,3121.3,3120.6,0.55081803]
[1720728616924,3.49711322,3121.3,3120.6,0.00081803]
[1720728617297,0.49711322,3121.3,3120.7,0.03408461]
[1720728617499,0.49711322,3121.3,3120.6,0.00081803]
[1720728618927,1.02121226,3121.3,3120.6,0.00081803]
[1720728619128,3.51361226,3121.2,3120.6,0.00081803]
[1720728619628,3.0,3121.1,3120.6,0.00081803]
[1720728619829,0.49711322,3121.0,3120.6,0.00081803]
[1720728627746,0.33529347,3120.9,3120.6,0.00081803]
[1720728628532,0.83240669,3120.9,3120.6,0.00081803]
[1720728630639,1.78140669,3120.9,3120.6,0.00081803]
[1720728633113,2.31195726,3120.9,3120.6,0.00081803]
[1720728633315,0.949,3120.7,3120.6,0.00081803]
[1720728633529,1.44611322,3120.7,3120.6,0.00081803]
[1720728637420,1.44611322,3120.7,3120.5,0.00469477]
[1720728637859,0.49711322,3120.6,3120.5,0.00469477]
[1720728645517,0.33529347,3120.9,3120.5,0.00469477]
[1720728645722,0.33529347,3120.9,3120.5,0.55469477]
[1720728645944,0.33529347,3120.9,3120.6,0.06490231]
[1720728646125,0.33529347,3120.9,3120.7,0.55]
[1720728646335,0.33529347,3120.9,3120.6,0.06490231]
[1720728646534,0.949,3120.8,3120.5,0.00469477]
[1720728646749,0.949,3120.8,3120.5,0.55469477]
[1720728647052,0.949,3120.6,3120.5,0.00469477]
[1720728647616,1.44611322,3120.6,3120.5,0.00469477]
[1720728656182,1.44611322,3120.6,3119.7,2.4102]
[1720728656385,0.949,3120.1,3119.7,2.4102]
[1720728656571,0.949,3120.1,3119.8,0.05922527]
[1720728656895,0.949,3120.1,3119.7,2.4102]
[1720728658080,0.949,3120.1,3119.8,0.55]
[1720728659275,3.33524398,3120.4,3119.8,0.55]
[1720728659457,3.0,3120.3,3119.8,0.55]
[1720728659664,0.33524398,3120.4,3119.8,0.55]
[1720728659869,0.52409904,3121.0,3119.9,0.949]
[1720728660184,0.16527829,3121.1,3119.8,0.55]
[1720728660185,0.33519455,3120.5,3120.3,0.949]
[1720728660385,0.949,3121.2,3120.3,0.949]
[1720728660528,0.33518905,3120.9,3120.4,0.05892264]
[1720728660728,0.949,3120.8,3120.2,2.3817]
[1720728661086,0.949,3120.6,3120.3,0.05898422]
[1720728661435,0.949,3120.6,3120.2,2.3817]
[1720728661634,0.949,3120.6,3120.3,0.05898422]
[1720728661861,1.97021226,3120.8,3120.2,2.3817]
[1720728662083,1.97021226,3120.8,3120.3,0.05898422]
[1720728662664,1.97021226,3120.8,3120.2,2.3817]
[1720728662864,1.97021226,3120.8,3120.3,0.05898422]
[1720728663073,1.97021226,3120.8,3120.2,2.3817]
[1720728663459,1.97021226,3120.8,3120.3,0.05898422]
[1720728663644,1.97021226,3120.8,3120.2,2.3817]
[1720728663870,0.949,3120.6,3120.3,0.05898422]
[1720728664053,0.949,3120.6,3120.2,2.3817]
[1720728664256,0.949,3120.6,3120.3,0.05898422]
[1720728664437,0.949,3120.6,3119.9,2.4914]
[1720728664763,1.44611322,3120.6,3120.0,0.05916895]
[1720728664968,0.949,3120.4,3120.0,0.05916895]
[1720728665169,0.949,3120.2,3120.0,0.05916895]
[1720728665363,1.44611322,3120.2,3120.0,0.05916895]
[1720728665568,1.44611322,3120.2,3119.6,2.4914]
[1720728665569,0.49711322,3120.2,3119.6,2.4914]
[1720728665771,0.949,3120.4,3120.1,0.05910737]
[1720728665933,0.949,3120.4,3119.6,2.4914]
[1720728666337,0.949,3120.4,3119.7,0.05931612]
[1720728667843,1.44611322,3120.4,3119.7,0.05931612]
[1720728671157,0.49711322,3120.3,3119.7,0.05931612]
[1720728671404,0.949,3120.2,3119.7,0.05931612]
[1720728672042,0.949,3120.2,3119.6,2.4914]
[1720728672243,0.949,3120.2,3119.7,0.05936766]
[1720728672879,1.39361132,3120.2,3119.7,0.05936766]
[1720728673190,1.89072454,3120.2,3119.7,0.05936766]
[1720728673543,1.89072454,3120.2,3119.4,2.3786]
[1720728673775,1.44611322,3120.2,3119.8,0.05930606]
[1720728673948,1.44611322,3120.2,3119.4,2.3786]
[1720728674473,1.44611322,3120.2,3119.5,0.05949086]
[1720728675865,0.33520059,3120.1,3119.5,0.05949086]
[1720728678050,0.33520059,3120.1,3119.7,2.351]
[1720728678246,0.33520059,3120.1,3119.8,0.05932835]
[1720728678489,0.33520059,3120.1,3119.7,2.351]
[1720728678794,0.33520059,3120.1,3119.9,0.05926676]
[1720728679104,0.33520059,3120.1,3120.0,0.05920517]
[1720728679556,0.33520059,3120.1,3119.7,2.351]
[1720728679874,0.33520059,3120.1,3120.0,3.2335]
[1720728680072,0.33520059,3120.1,3120.0,3.29264668]
[1720728680270,3.16481623,3121.0,3120.0,3.29264668]
[1720728680473,0.33518264,3120.6,3120.0,3.29264668]
[1720728681495,0.33518264,3120.6,3120.2,0.949]
[1720728681851,0.33518264,3120.6,3120.3,0.05896194]
[1720728682203,0.33518264,3120.6,3120.1,2.3247]
[1720728682658,0.33518264,3120.6,3120.2,0.05902351]
[1720728689622,0.33518264,3120.6,3120.2,1.00802351]
[1720728690116,0.33518264,3120.6,3120.2,0.05902351]
[1720728690732,0.33518264,3120.6,3119.9,2.4316]
[1720728690915,1.28418264,3120.6,3120.3,0.05890066]
[1720728691111,1.28418264,3120.6,3119.9,2.4316]
[1720728691112,1.7126009,3120.6,3119.9,2.4316]
[1720728691311,0.949,3120.6,3120.4,0.05883909]
[1720728691637,0.33519001,3120.5,3119.9,2.4316]
[1720728692008,0.33519001,3120.5,3120.0,0.05909376]
[1720728694443,0.949,3120.4,3119.6,2.2741]
[1720728694627,0.949,3120.4,3120.1,0.05720979]
[1720728694846,1.12396366,3120.4,3119.6,2.2741]
[1720728695045,0.949,3120.4,3119.6,2.2741]
[1720728695247,0.949,3120.4,3119.7,0.05748261]
[1720728695642,0.80063656,3120.5,3119.7,0.05748261]
[1720728695839,0.33519001,3120.5,3119.9,0.949]
[1720728696249,3.949,3120.9,3120.0,0.05728948]
[1720728696440,0.33518104,3120.5,3120.0,0.05728948]
[1720728698257,0.33518104,3120.5,3119.7,1.62188272]
[1720728698461,0.33518104,3120.5,3119.8,2.7887284]
[1720728698631,0.33518104,3120.5,3119.9,1.11549136]
[1720728698827,0.33518104,3120.5,3120.0,0.05725048]
[1720728699260,0.33518104,3120.5,3120.1,0.05719029]
[1720728699463,0.33518104,3120.5,3119.7,0.67280744]
[1720728699759,0.33518104,3120.5,3119.8,2.84602125]
[1720728699958,0.33518104,3120.5,3119.9,1.11545848]
[1720728700162,0.33518104,3120.5,3119.9,0.05731346]
[1720728700731,0.33518104,3120.5,3119.7,0.67280744]
[1720728700937,0.33518104,3120.5,3120.0,0.05725187]
[1720728701163,0.33518104,3120.5,3119.7,0.67280744]
[1720728701364,0.33518104,3120.5,3120.1,0.05719029]
[1720728701531,0.33518104,3120.5,3119.6,2.2741]
[1720728701739,0.33518104,3120.5,3120.2,0.05712454]
[1720728702266,0.33518104,3120.5,3119.6,2.2741]
[1720728702445,0.33518104,3120.5,3119.7,1.17299679]
[1720728702645,0.33518104,3120.5,3119.7,0.05743247]
[1720728703348,2.2819,3120.4,3119.7,0.05743247]
[1720728703543,5.2819,3120.4,3119.7,0.05743247]
[1720728703747,2.2819,3120.4,3119.7,0.05743247]
[1720728703948,5.2819,3120.4,3119.7,0.05743247]
[1720728708895,3.0,3120.4,3119.7,0.05743247]
[1720728709181,0.33518104,3120.5,3119.7,0.05743247]
[1720728712643,0.66869914,3120.5,3119.7,0.05743247]
[1720728712847,0.66869914,3120.5,3119.3,2.95745063]
[1720728713073,0.33518104,3120.5,3119.4,2.78912968]
[1720728713238,0.33518104,3120.5,3119.5,1.11565187]
[1720728713450,0.33518104,3120.5,3119.5,0.05760581]
[1720728713877,0.33518104,3120.5,3119.3,2.95745063]
[1720728714174,0.33518104,3120.5,3119.4,2.84674477]
[1720728714375,0.33518104,3120.5,3119.5,1.11563094]
[1720728714578,0.33518104,3120.5,3119.4,0.05766742]
[1720728714757,0.33518104,3120.5,3119.6,0.05759157]
[1720728714951,0.33518104,3120.5,3119.5,0.05765317]
[1720728715276,0.33518104,3120.5,3119.6,1.11561041]
[1720728715477,0.33518104,3120.5,3119.6,0.05759157]
[1720728715774,0.33518104,3120.5,3119.4,0.67305063]
[1720728715975,0.33518104,3120.5,3119.7,0.05752997]
[1720728716155,0.33518104,3120.5,3119.4,0.67305063]
[1720728716359,0.33518104,3120.5,3119.8,0.05746837]
[1720728716566,0.33518104,3120.5,3119.4,0.67305063]
[1720728716755,0.33518104,3120.5,3119.9,0.05740678]
[1720728716965,0.33518104,3120.5,3119.4,0.67305063]
[1720728717162,0.33518104,3120.5,3120.0,0.0573452]
[1720728717353,0.33518104,3120.5,3119.4,0.67305063]
[1720728717558,0.33518104,3120.5,3120.1,0.05728361]
[1720728717756,0.66869914,3120.5,3119.4,0.67317311]
[1720728717955,0.33518104,3120.5,3120.2,0.05722203]
[1720728718163,0.33518104,3120.5,3119.4,0.67317311]
[1720728718474,0.33518104,3120.5,3120.3,0.05716046]
[1720728718667,0.33518104,3120.5,3119.5,0.949]
[1720728719162,0.33518104,3120.5,3119.6,0.05759157]
[1720728720253,3.3821,3120.4,3119.6,0.05759157]
[1720728720457,3.3717281,3120.3,3119.6,0.05759157]
[1720728720667,3.3717281,3120.3,3119.3,3.2334]
[1720728720865,3.0,3120.3,3119.7,0.05752997]
[1720728721099,3.0,3120.3,3119.3,3.2334]
[1720728721379,3.0,3120.3,3119.4,2.7892284]
[1720728721577,3.0,3120.3,3119.4,0.05771478]
[1720728723762,0.949,3120.2,3119.4,0.05771478]
[1720728724354,1.28423062,3120.2,3119.4,0.05771478]
[1720728725887,0.949,3120.0,3119.4,0.05771478]
[1720728726094,0.949,3119.8,3119.4,0.05771478]
[1720728726389,0.949,3119.8,3119.1,0.00082826]
[1720728726390,2.4983,3119.5,3119.1,0.00082826]
[1720728726566,0.949,3119.3,3119.1,0.00082826]
[1720728726970,3.0,3119.4,3119.1,0.00082826]
[1720728727180,2.4983,3119.5,3119.1,0.00082826]
[1720728727181,3.4473,3119.5,3119.1,0.00082826]
[1720728727379,3.0,3119.4,3119.1,0.00082826]
[1720728731368,3.64473,3119.4,3119.1,0.00082826]
[1720728733280,3.0,3119.4,3119.1,0.00082826]
[1720728733480,5.4983,3119.5,3119.1,0.00082826]
[1720728733679,2.4983,3119.5,3119.1,0.00082826]
[1720728733881,3.0,3119.4,3119.1,0.00082826]
[1720728734073,3.0,3119.4,3119.2,0.05613776]
[1720728734270,5.4983,3119.5,3119.2,0.05613776]
[1720728734621,5.4983,3119.5,3119.1,0.00082826]
[1720728736867,6.15962715,3119.5,3119.1,0.00082826]
[1720728737471,0.949,3119.4,3119.1,0.00082826]
[1720728737673,3.949,3119.4,3119.1,0.00082826]
[1720728737871,3.949,3119.4,3119.2,0.05625202]
[1720728738289,3.949,3119.4,3119.1,0.00082826]
[1720728738691,3.949,3119.4,3119.2,0.05625202]
[1720728739198,3.949,3119.4,3119.1,0.00082826]
[1720728739568,3.949,3119.4,3119.2,0.05635376]
[1720728739772,0.33527492,3119.3,3119.2,0.05635376]
[1720728739972,0.33527492,3119.3,3119.1,0.00082826]
[1720728740406,0.33527492,3119.3,3119.2,0.05635376]
[1720728740720,0.33527492,3119.3,3119.1,0.00082826]
[1720728741081,0.33527492,3119.3,3119.2,0.05635376]
[1720728741578,0.33527492,3119.3,3119.1,0.00082826]
[1720728741877,0.33527492,3119.3,3119.2,0.05635376]
[1720728742405,0.33527492,3119.3,3119.1,0.00082826]
[1720728742923,0.33527492,3119.3,3119.2,0.05635376]
[1720728743201,0.33527492,3119.3,3119.1,0.00082826]
[1720728743406,0.33527492,3119.3,3119.2,0.05635376]
[1720728743633,0.33527492,3119.3,3119.1,0.00082826]
[1720728743911,0.33527492,3119.3,3119.2,0.05635376]
[1720728744289,0.33527492,3119.3,3119.1,0.00082826]
[1720728744606,0.33527492,3119.3,3119.2,0.05635376]
[1720728744770,0.33527492,3119.3,3119.1,0.00082826]
[1720728745101,0.33527492,3119.3,3119.2,0.05635376]
[1720728745507,0.33527492,3119.3,3119.1,0.00082826]
[1720728745718,0.33527492,3119.3,3119.2,0.05636352]
[1720728747577,1.1149715,3119.6,3119.2,0.05636352]
[1720728747796,0.33527429,3119.3,3119.2,0.05636352]
[1720728754583,0.33527429,3119.3,3119.1,0.00082826]
[1720728754584,2.72337429,3119.3,3119.1,0.00082826]
[1720728754799,2.72337429,3119.3,3118.1,0.025]
[1720728754800,5.03573225,3119.2,3118.5,0.128554]
[1720728755093,0.949,3118.7,3118.1,0.025]
[1720728755892,0.949,3118.4,3118.1,0.025]
[1720728756092,3.0,3118.9,3118.1,0.025]
[1720728756093,0.949,3118.6,3118.1,0.025]
[1720728757204,0.949,3118.8,3118.1,0.025]
[1720728757551,0.949,3118.2,3118.1,0.025]
[1720728757842,1.36077988,3118.2,3118.1,0.05189563]
[1720728758033,1.36077988,3118.2,3117.6,0.00082387]
[1720728758222,0.949,3117.9,3117.6,0.00082387]
[1720728758380,3.2811,3117.9,3117.6,0.00082387]
[1720728758584,3.0,3117.8,3117.6,0.00082387]
[1720728760392,0.949,3117.8,3117.6,0.00082387]
[1720728760611,3.949,3117.8,3117.6,0.00082387]
[1720728761617,3.0,3117.8,3117.6,2.50012387]
[1720728761840,3.0,3117.8,3117.7,0.05225763]
[1720728762024,0.949,3118.2,3117.7,0.05225763]
[1720728762229,0.949,3118.2,3117.6,2.50012387]
[1720728762622,3.0,3118.3,3117.6,2.50012387]
[1720728762943,3.41177988,3118.3,3117.6,2.50012387]
[1720728763095,1.69606804,3118.2,3117.6,2.50012387]
[1720728764148,0.949,3117.8,3117.6,0.00082387]
[1720728764605,3.949,3117.8,3117.7,0.05222011]
[1720728764816,4.36077988,3117.8,3117.6,0.00082387]
[1720728765128,0.66888799,3117.7,3117.6,0.00082387]
[1720728768228,3.41177988,3117.8,3117.6,0.00082387]
[1720728770836,0.41177988,3117.7,3117.6,0.00082387]
[1720728772136,4.08823225,3117.7,3116.2,2.434]
[1720728772636,3.0,3117.6,3116.3,0.05134592]
[1720728772837,0.70882323,3117.5,3116.3,0.05134592]
[1720728773215,0.70882323,3117.5,3116.4,2.434]
[1720728773558,3.70882323,3117.5,3116.4,2.48528419]
[1720728774136,3.0,3117.4,3116.4,2.48528419]
[1720728774361,0.70882323,3117.5,3116.4,2.48528419]
[1720728774853,0.41177988,3117.6,3116.4,2.48528419]
[1720728775156,3.41177988,3117.6,3116.4,2.48528419]
[1720728775319,0.41177988,3117.6,3116.4,2.48528419]
[1720728777543,3.0,3117.8,3116.5,2.34516288]
[1720728777848,0.74706804,3118.2,3116.8,2.3377]
[1720728778143,0.74706804,3118.2,3117.0,2.3377]
[1720728778144,0.33528816,3118.2,3117.0,2.3377]
[1720728778357,0.74706804,3118.2,3117.0,2.3377]
[1720728778519,0.74706804,3118.2,3117.1,2.35687443]
[1720728779354,0.74706804,3118.2,3117.2,2.306]
[1720728779628,0.74706804,3118.2,3117.3,0.11489994]
[1720728779806,0.74706804,3118.2,3117.4,2.306]
[1720728780001,0.41177988,3118.1,3117.4,2.35668935]
[1720728780241,0.88071225,3118.1,3117.4,0.05068935]
[1720728780431,2.28,3118.0,3116.8,2.306]
[1720728780628,1.19678347,3117.9,3117.5,0.05049565]
[1720728780948,3.7278511,3117.9,3116.6,2.3988]
[1720728781121,0.41177988,3117.9,3116.6,2.3988]
[1720728781320,0.3353032,3117.8,3116.7,2.4498087]
[1720728781647,3.06468308,3117.8,3116.7,2.4498087]
[1720728781820,3.41177988,3117.7,3116.7,2.4498087]
[1720728782008,3.88071225,3117.7,3116.7,2.4498087]